Cogmind - Beta 10.1 @@@ ROGUE MODE // 2020.10.29 @ 23:40:31 Player: W_W Result: Destroyed by G-67 Veteran with Plasma Rifle Performance ------------- Evolutions (6) 3000 Regions Visited (13) 2600 Robots Destroyed (197) 985 Value Destroyed (5021) 5021 Prototype IDs (29) 580 Alien Tech Used (0) 0 Bonus (1327) 1327 TOTAL SCORE: 13513 Bonus ------- High Alert Combat Kills 394 Follower Combat Kills 174 Entered Garrisons 200 Used RIF Installer 500 Aligned with FarCom 300 Friendly Fire -241 Cogmind --------- Core Integrity 0/1150 Matter 41/300 Energy 69/100 System Corruption 25% Temperature Cool (211) Movement Core (1100) Ox21 Location -4/Factory Parts ------- > --- POWER (2) -------- (None) > --- PROPULSION (5) --- (None) > --- UTILITY (8) ------ High-capacity Storage Unit High-capacity Storage Unit > --- WEAPON (4) ------- (None) > --- INVENTORY (20) --- Antigrav System High-capacity Storage Unit Advanced Transmission Jammer Reaction Control System Improved Field Recycling Unit (0) Hardcell Cannon Peak State ------------ > --- POWER ------------ Micro Fission Core Micro Fission Core > --- PROPULSION ------- Aerolev Unit Antigrav System Antigrav System Gyrokinetic Inverter Gyrokinetic Inverter > --- UTILITY ---------- Medium Storage Unit Lightpack 2.0 Triangulator Advanced ECM Suite Layered Medium Armor Plating Hacking Suite Improved System Backup Module > --- WEAPON ----------- Mass Driver Hardcell Cannon Greatsword > --- INVENTORY -------- Armored Medium Treads Armored Medium Treads Armored Medium Treads Armored Medium Treads Advanced Medium Treads Advanced Medium Treads Antigrav System High-capacity Storage Unit High-capacity Storage Unit High-capacity Storage Unit Advanced Transmission Jammer Reaction Control System Hardened Heavy Armor Plating Medium Reactive Plating Improved Field Recycling Unit Improved Arc Projector Phase Gun Long-range Proton Cannon Coil Gun KE Penetrator Gauss Cannon Tesla Bomb Launcher Heavy Missile Launcher Heavy Missile Launcher Improved Remote Datajack Chainsword Lance [Rating: 119] Favorites ----------- Power Improved Deuterium Engine Engine Improved Deuterium Engine Power Core Micro Fission Core Reactor Light Antimatter Reactor Propulsion Aerolev Unit Treads Light Treads Leg Aluminum Leg Hover Unit Aerolev Unit Flight Unit Improved Flight Unit Utility High-capacity Storage Unit Device Actuator Array Storage High-capacity Storage Unit Processor Melee Analysis Suite Hackware System Shield Protection Improved Medium Armor Plating Weapon Flak Cannon Energy Gun Gatling Laser Energy Cannon Beam Cannon Ballistic Gun High-powered Shotgun Ballistic Cannon Flak Cannon Launcher Grenade Launcher Special Weapon Improved Remote Datajack Impact Weapon Powered Hammer Slashing Weapon Chainsword Piercing Weapon Lance Build | -11 -10 -10 -10 -9 -8 -8 -8 -7 -7 -6 -5 -5 -4 ------- Run | Scr Mat Min Exi Min Mat Sto Gar Fac Low Zio Pro Fac Fac Slots Evolved 12 | . . . . . 4 . . 2 . . . 4 2 Power 1 | . . . . . . . . . . . . 1 . Propulsion 3 | . . . . . . . . 2 . . . 1 . Utility 6 | . . . . . 2 . . . . . . 2 2 Weapon 2 | . . . . . 2 . . . . . . . . Parts Attached 207 | 8 14 5 4 4 29 30 15 20 1 1 . 14 62 Power 19 | 1 2 1 . . 2 2 2 1 . . . 3 5 Engine 9 | 1 2 1 . . 1 1 2 . . . . 1 . Core 9 | . . . . . 1 1 . 1 . . . 2 4 Reactor 1 | . . . . . . . . . . . . . 1 Propulsion 50 | 2 3 . . 1 5 6 5 6 . . . 4 18 Treads 24 | 2 1 . . 1 5 4 3 . . . . 1 7 Leg 2 | . 2 . . . . . . . . . . . . Wheel . | . . . . . . . . . . . . . . Hover 22 | . . . . . . 1 2 5 . . . 3 11 Flight 2 | . . . . . . 1 . 1 . . . . . Utility 45 | 3 3 . 1 2 5 2 . 3 . . . 7 19 Device 17 | . . . . . . . . 2 . . . 4 11 Storage 18 | 3 3 . 1 2 3 2 . 1 . . . 1 2 Processor 1 | . . . . . 1 . . . . . . . . Hackware 2 | . . . . . 1 . . . . . . 1 . Protection 7 | . . . . . . . . . . . . 1 6 Artifact . | . . . . . . . . . . . . . . Weapon 93 | 2 6 4 3 1 17 20 8 10 1 1 . . 20 Energy Gun 26 | 1 3 . . . 9 9 1 1 . . . . 2 Energy Cannon 5 | . 1 2 . . . . . . . . . . 2 Ballistic Gun 13 | 1 2 1 1 1 4 . 1 . . . . . 2 Ballistic Cannon 13 | . . . . . 2 4 2 2 . . . . 3 Launcher 11 | . . 1 1 . 1 4 . 1 . . . . 3 Special Weapon 1 | . . . . . . . . . . . . . 1 Impact Weapon 3 | . . . . . . . . 3 . . . . . Slashing Weapon 18 | . . . 1 . 1 3 4 3 1 1 . . 4 Piercing Weapon 3 | . . . . . . . . . . . . . 3 Special Melee Weapon . | . . . . . . . . . . . . . . Unidentified Prototypes 17 | . . . 2 . 4 5 . 2 . . . . 4 Parts Lost 58 | . 6 3 . . 2 . 3 . . . . 2 42 Power 6 | . 1 . . . 1 . 1 . . . . 1 2 Propulsion 18 | . 2 1 . . . . . . . . . 1 14 Utility 12 | . . . . . . . . . . . . . 12 Weapon 22 | . 3 2 . . 1 . 2 . . . . . 14 Highest Loss Streak 16 | . 2 3 . . 1 . 2 . . . . 2 16 Average Slot Usage (%) 92 | . 97 97 75 84 95 99 98 89 92 92 92 93 84 Engine 6 | . 13 14 14 14 6 6 8 . . . . 2 . Core 3 | . . . . . 2 2 . 6 7 7 7 8 8 Treads 7 | . 2 . . 12 17 17 17 . . . . . 4 Leg 6 | . 23 25 14 1 . . . . . . . . . Hover 7 | . . . . . . . . 26 30 30 30 28 18 Device 2 | . . . . . . . . 6 7 7 7 3 10 Storage 21 | . 28 28 20 27 27 27 27 8 7 7 7 9 10 Hackware 5 | . . . . . 7 9 9 7 7 7 7 11 6 Energy Gun 7 | . 13 3 . . 13 15 14 5 2 . . . . Energy Cannon 3 | . 9 19 . . . . . . . . . . . Ballistic Gun 4 | . 4 2 12 14 11 3 2 4 . . . . . Ballistic Cannon 3 | . . . . . 7 11 6 3 . . . . . Launcher 2 | . . 2 12 14 1 4 6 . . . . . . Impact Weapon 1 | . . . . . . . . 6 7 7 7 5 . Slashing Weapon 5 | . . . . . . 1 5 8 19 23 23 17 11 Naked Turns . | . . . . . . . . . . . . . . Heaviest Build 127 | 15 57 59 55 71 112 127 124 121 32 31 31 51 127 Greatest Support 138 | 40 40 20 10 20 42 44 44 46 46 46 46 62 138 Greatest Overweight (x) 7 | . 5 5 5 7 5 5 5 3 . . . . 2 Average Overweight (x) . | . 1 2 2 3 2 2 2 . . . . . . Largest Inventory Capacity 32 | 8 18 18 24 24 32 28 28 32 24 24 24 28 28 Average Capacity 23 | 6 17 18 20 20 26 26 28 24 24 24 24 26 27 Most Carried 28 | 6 18 18 23 23 26 28 28 26 24 24 24 28 28 Average Carried 22 | 3 15 17 18 16 23 26 27 23 24 24 24 25 24 Final Capacity 28 | 8 18 18 24 20 26 28 28 24 24 24 24 28 20 Final Carried 28 | 6 18 18 23 20 26 28 26 24 24 24 24 28 6 Class Distribution -------------------- 45% | Hauler-Mutant 24% | Hauler-Skirmisher 20% | Mutant 6% | Scavenger-Mutant Dominant Class ---------------- Mutant | -10/Materials Mutant | -10/Mines Hauler-Mutant | -10/Exiles Hauler-Mutant | -9/Mines Hauler-Skirmisher | -8/Materials Hauler-Skirmisher | -8/Storage Hauler-Mutant | -8/Garrison Hauler-Mutant | -7/Factory Hauler-Mutant | -7/Lower Caves Hauler-Mutant | -6/Zion Hauler-Mutant | -5/Proximity Caves Hauler-Mutant | -5/Factory Hauler-Mutant | -4/Factory Resources | -11 -10 -10 -10 -9 -8 -8 -8 -7 -7 -6 -5 -5 -4 ----------- Run | Scr Mat Min Exi Min Mat Sto Gar Fac Low Zio Pro Fac Fac Matter Collected 3842 | 410 187 39 162 271 684 887 197 75 185 44 39 120 542 Remotely . | . . . . . . . . . . . . . . Salvage Created 6605 | 335 902 192 . 81 1105 1738 267 75 120 . 78 332 1380 Parts 396 | 37 53 19 . 6 46 120 13 . . . 6 18 78 Haulers Intercepted 11 | . 1 . . . 5 4 . . . . . . 1 Recyclers Shooed 5 | 1 3 . . . 1 . . . . . . . . Parts Field Recycled . | . . . . . . . . . . . . . . Retrieved Matter . | . . . . . . . . . . . . . . Parts Self-Destructed 6 | . . . . . . . . . . . 6 . . Prevented . | . . . . . . . . . . . . . . Kills | -11 -10 -10 -10 -9 -8 -8 -8 -7 -7 -6 -5 -5 -4 ------- Run | Scr Mat Min Exi Min Mat Sto Gar Fac Low Zio Pro Fac Fac Combat Hostiles Destroyed 114 | . 14 11 . 3 16 34 8 1 . . 3 3 21 Melee 19 | . . . . . . 2 . . . . 3 3 11 Guns 38 | . 12 3 . . 9 9 3 1 . . . . 1 Cannons 19 | . 1 4 . . 6 3 1 . . . . . 4 AOE 36 | . 1 4 . 3 1 20 3 . . . . . 4 Classes Destroyed 17 | 3 5 . . . 2 5 . . 1 . . 1 . Worker 20 | 4 . . . . 2 6 . 1 . . . 2 5 Builder 13 | . . . . . . 3 . 2 . . . 3 5 Tunneler 10 | 9 . . . . . . . . . . . . 1 Hauler 11 | . 1 . . . 5 4 . . . . . . 1 Recycler 14 | 1 3 . . . 2 4 . . . . . 1 3 Operator 1 | . 1 . . . . . . . . . . . . Watcher 8 | . 3 . . . 3 2 . . . . . . . Swarmer 40 | . 3 9 . . . 12 3 . . . 3 1 9 Grunt 42 | . 11 2 . 3 12 11 2 . . . . . 1 Brawler 2 | . . . . . . 2 . . . . . . . Duelist 2 | . . . . . 1 1 . . . . . . . Protector 1 | . . . . . . 1 . . . . . . . Sentry 14 | . . . . . 3 6 2 1 . . . . 2 Demolisher 1 | . . . . . . 1 . . . . . . . Hunter 4 | . . . . . . 1 1 . . . . . 2 Programmer 9 | . . . . . . . . . . . . 2 7 Decomposer 3 | . . . . . . . . . 3 . . . . Samaritan 2 | . . . . . . . . . 2 . . . . Best Kill Streak 9 | 7 5 6 . 3 6 9 3 2 . . 3 4 5 Combat Bots Only 8 | . 3 6 . 3 3 8 3 1 . . 3 2 4 Max Kills in Single Turn 4 | 1 1 4 . 2 2 4 2 1 1 . 1 2 3 Gunslinging . | . . . . . . . . . . . . . . Exploded 4 | . 1 4 . 2 1 2 2 . . . . . 1 Melee 2 | . . . . . . 1 . . . . 1 2 1 Uniques/NPCs Destroyed . | . . . . . . . . . . . . . . Combat | -11 -10 -10 -10 -9 -8 -8 -8 -7 -7 -6 -5 -5 -4 -------- Run | Scr Mat Min Exi Min Mat Sto Gar Fac Low Zio Pro Fac Fac Damage Taken 13462 | . 893 348 . 48 648 1218 520 45 . 20 549 374 8799 Core 1860 | . 169 36 . 3 123 114 44 . . . 150 57 1164 Absorbed by Shields . | . . . . . . . . . . . . . . Core Remaining (%) 67 | 100 . . . 16 . . 48 . . . 78 94 . Volleys Fired 317 | 36 85 28 . 2 44 54 14 5 . . . . 49 Largest 4 | 2 2 2 . 2 4 4 4 4 . . . . 3 Hottest 227 | 60 100 120 . 50 199 227 191 142 . . . . 159 Shots Fired 717 | 72 158 49 . 3 162 147 40 17 . . . . 69 Gun 473 | 72 142 19 . 1 113 82 22 5 . . . . 17 Cannon 191 | . 16 29 . . 42 40 12 10 . . . . 42 Launcher 52 | . . 1 . 2 7 25 6 2 . . . . 9 Special 1 | . . . . . . . . . . . . . 1 Kinetic 319 | 36 66 6 . 1 95 54 12 15 . . . . 34 Thermal 244 | 36 47 42 . . 48 59 11 . . . . . 1 Explosive 33 | . . 1 . 2 7 12 . 2 . . . . 9 Electromagnetic 120 | . 45 . . . 12 22 17 . . . . . 24 Robot Hit Streak 13 | 10 11 6 . 4 9 9 13 6 . . . . 7 Robot Miss Streak 7 | 4 4 3 . . 7 6 3 . . . . . 4 Penetration Max 1 | . . . . . . . . . . . . . 1 Secondary Targets 1 | . 1 . . . . . . . . . . . . Max Gunslinging Chain 1 | . 1 . . . . . . . . . . . . Shots Hit Robots 524 | 35 105 19 . 3 96 95 30 7 7 . 10 17 100 Core Hits 344 | 18 45 14 . 4 72 94 19 3 2 . 4 8 61 Critical Hits 6 | . . . . . . 1 1 . . . . . 4 Critical Kills 2 | . . . . . . . . . . . . . 2 Critical Parts Destroyed 4 | . . . . . . 1 1 . . . . . 2 Melee Attacks 292 | . . . . . 4 15 21 35 10 . 20 44 143 Impact 39 | . . . . . . . . 23 6 . 5 4 1 Slashing 218 | . . . . . 4 15 21 12 4 . 15 40 107 Piercing 35 | . . . . . . . . . . . . . 35 Sneak Attacks 34 | . . . . . . 2 . 3 7 . . 8 14 Combat Hostiles . | . . . . . . . . . . . . . . Follow-up Attacks 36 | . . . . . . . . 1 1 . 8 5 21 Damage Inflicted 17826 | 353 1257 483 . 190 1864 4046 826 496 669 . 304 1198 6140 Guns 3980 | 353 963 80 . 6 1020 761 287 65 . . . . 445 Cannons 2266 | . 177 209 . . 463 336 159 98 . . . . 824 Explosions 5017 | . 62 183 . 181 316 2496 380 32 . . . . 1367 Melee 6317 | . . . . . . 453 . 301 669 . 304 1198 3392 Ramming 246 | . 55 11 . 3 65 . . . . . . . 112 Kinetic 2788 | 107 271 24 . 6 871 451 159 163 . . . . 736 Thermal 2671 | 246 468 265 . . 507 847 312 . . . . . 26 Explosive 3320 | . . 183 . 181 277 1280 . 32 . . . . 1367 Electromagnetic 2484 | . 463 . . . 144 1015 355 . . . . . 507 Impact 913 | . . . . . . . . 301 549 . 63 . . Slashing 4728 | . . . . . . 453 . . 120 . 241 1198 2716 Piercing 676 | . . . . . . . . . . . . . 676 Highest Corruption 25 | . 1 1 1 1 . . . . . . . 2 25 Average Corruption 5 | . 1 1 1 1 . . . . . . . 1 12 Corruption Purged . | . . . . . . . . . . . . . . Effects 100 | . . 6 4 . . . . . . . . 2 88 Message Errors 16 | . . 3 2 . . . . . . . . 1 10 Matter Fused 11 | . . . . . . . . . . . . . 11 Heat Flow Errors 9 | . . . . . . . . . . . . . 9 Energy Discharges 11 | . . 1 1 . . . . . . . . . 9 Parts Rejected 1 | . . . . . . . . . . . . . 1 Data Loss (minor) 12 | . . 1 1 . . . . . . . . 1 9 Data Loss (major) 3 | . . . . . . . . . . . . . 3 Alerts 1 | . . . . . . . . . . . . . 1 Misdirections 3 | . . . . . . . . . . . . . 3 Targeting Errors 30 | . . 1 . . . . . . . . . . 29 Weapon Failures 3 | . . . . . . . . . . . . . 3 Overload Shots . | . . . . . . . . . . . . . . Overflow Damage 2013 | . 1 39 . . 1 156 6 211 383 . 33 443 740 Projectiles 54 | . . . . . . . . . . . . . 54 Explosions 265 | . . 39 . . . 156 6 . . . . . 64 Melee 1694 | . 1 . . . 1 . . 211 383 . 33 443 622 Knockbacks 25 | . . . . . 9 4 2 2 1 . . . 7 Impact 5 | . . . . . . . . 2 1 . . . 2 Kinetic 19 | . . . . . 8 4 2 . . . . . 5 Secondary 1 | . . . . . 1 . . . . . . . . Self-Inflicted Damage 915 | . 82 36 . 19 33 301 44 . . . . . 400 Shots 28 | . 2 1 . 2 2 11 2 . . . . . 8 Rammed 27 | . 3 4 . 1 5 . . . . . . . 14 Targets Rammed 29 | . 5 4 . 1 5 . . . . . . . 14 Kicked 2 | . 2 . . . . . . . . . . . . Crushed . | . . . . . . . . . . . . . . Highest Temperature 587 | 60 276 458 . 16 453 462 551 210 . . . 8 587 Average Temperature 122 | 30 50 166 . 8 165 151 251 94 . . . 1 127 Received Heat Transfer 1959 | . 255 39 . 18 324 153 171 . . 9 54 36 900 Effects 50 | . . 1 . . 6 9 6 . . . . . 28 Shutdowns 18 | . . 1 . . 2 3 1 . . . . . 11 Energy Bleed 6 | . . . . . 1 1 . . . . . . 4 Interference 11 | . . . . . 3 5 2 . . . . . 1 Matter Decay 4 | . . . . . . . 1 . . . . . 3 Short Circuit 6 | . . . . . . . 1 . . . . . 5 Damage (minor) 2 | . . . . . . . . . . . . . 2 Damage (major) 2 | . . . . . . . 1 . . . . . 1 Damage (core) 1 | . . . . . . . . . . . . . 1 Siege Activations . | . . . . . . . . . . . . . . Robots Corrupted 2 | . . . . . . . 1 . . . . . 1 Combat Hostiles 2 | . . . . . . . 1 . . . . . 1 Parts Fried 8 | . 1 . . . . 1 . 5 . . . . 1 Impact Corruptions 33 | . 1 . . . 1 . . 8 23 . . . . Robots Melted . | . . . . . . . . . . . . . . Combat Hostiles . | . . . . . . . . . . . . . . Parts Melted 11 | 2 3 1 . . . 5 . . . . . . . Heat Transferred 5126 | 575 945 569 . . 938 1603 459 . . . . . 37 Parts Sabotaged . | . . . . . . . . . . . . . . Parts Stolen . | . . . . . . . . . . . . . . Parts Stripped . | . . . . . . . . . . . . . . Power Chain Reactions 15 | . 2 . . . 1 9 3 . . . . . . Missiles Intercepted . | . . . . . . . . . . . . . . Alert | -11 -10 -10 -10 -9 -8 -8 -8 -7 -7 -6 -5 -5 -4 ------- Run | Scr Mat Min Exi Min Mat Sto Gar Fac Low Zio Pro Fac Fac Peak Influence 933 | 70 345 140 . 85 207 933 805 555 . . . 166 465 Initial 610 | . 45 . . . 33 . 610 422 . . . 37 40 Average 180 | 33 114 63 . 84 65 240 720 359 . . . 66 125 Maximum Alert Level 3 | . 1 . . . 1 3 3 2 . . . . 2 Low Security (%) 73 | 100 88 100 . 100 92 60 . 13 . . . 100 81 Level 1 10 | . 11 . . . 7 11 . 43 . . . . 16 Level 2 9 | . . . . . . 17 34 43 . . . . 2 Level 3 6 | . . . . . . 11 65 . . . . . . Level 4 . | . . . . . . . . . . . . . . Level 5 . | . . . . . . . . . . . . . . High Security . | . . . . . . . . . . . . . . Max Security . | . . . . . . . . . . . . . . Squads Dispatched 29 | . 3 . . . 1 6 . 1 . . . 4 14 Investigation 3 | . 1 . . . 1 . . . . . . 1 . Extermination 7 | . . . . . . . . 1 . . . 1 5 Reinforcement 8 | . 2 . . . . 1 . . . . . 2 3 Assault 2 | . . . . . . 2 . . . . . . . Garrison 9 | . . . . . . 3 . . . . . . 6 Intercept . | . . . . . . . . . . . . . . Construction Impeded 5 | . . . . . . 1 . . . . . 1 3 Haulers Reinforced . | . . . . . . . . . . . . . . Stealth | -11 -10 -10 -10 -9 -8 -8 -8 -7 -7 -6 -5 -5 -4 --------- Run | Scr Mat Min Exi Min Mat Sto Gar Fac Low Zio Pro Fac Fac Distress Signals 13 | . 1 . . . 4 4 . . . . . . 4 Communications Jammed . | . . . . . . . . . . . . . . Distress Signals . | . . . . . . . . . . . . . . Times Spotted 227 | . 32 11 . 2 23 41 7 3 . 5 24 11 68 Peak Tracking Total 14 | . 4 6 . 2 6 6 4 2 . 6 7 7 14 Tactical Retreats 30 | . . . . . 1 3 1 2 . 1 7 5 10 Traps | -11 -10 -10 -10 -9 -8 -8 -8 -7 -7 -6 -5 -5 -4 ------- Run | Scr Mat Min Exi Min Mat Sto Gar Fac Low Zio Pro Fac Fac Traps Triggered 14 | . 1 . . . . 1 4 2 . . . 2 4 Indirectly . | . . . . . . . . . . . . . . Trap Hack Attempts . | . . . . . . . . . . . . . . Triggered . | . . . . . . . . . . . . . . Disarmed . | . . . . . . . . . . . . . . Reprogrammed . | . . . . . . . . . . . . . . Reused . | . . . . . . . . . . . . . . Traps Extracted . | . . . . . . . . . . . . . . Installed . | . . . . . . . . . . . . . . Triggered 1 | . . . . . . . . . . . 1 . . Machines | -11 -10 -10 -10 -9 -8 -8 -8 -7 -7 -6 -5 -5 -4 ---------- Run | Scr Mat Min Exi Min Mat Sto Gar Fac Low Zio Pro Fac Fac Machines Disabled 10 | . . 2 . . . 5 1 . . . . . 2 Max in Single Turn 2 | . . 1 . . . 1 1 . . . . . 2 Garrison Relay 1 | . . . . . . . 1 . . . . . . Machines Sabotaged . | . . . . . . . . . . . . . . Garrisons Compromised . | . . . . . . . . . . . . . . Overloaded Fab Kills . | . . . . . . . . . . . . . . Fab Network Shutdowns . | . . . . . . . . . . . . . . Hacking | -11 -10 -10 -10 -9 -8 -8 -8 -7 -7 -6 -5 -5 -4 --------- Run | Scr Mat Min Exi Min Mat Sto Gar Fac Low Zio Pro Fac Fac Machines Accessed 41 | . 7 . . . 4 11 . 6 . . 1 7 5 Terminals 28 | . 6 . . . 3 9 . 5 . . 1 2 2 Fabricators 2 | . . . . . . . . . . . . 2 . Repair Stations 2 | . . . . . . . . . . . . 1 1 Recycling Units 8 | . 1 . . . 1 1 . 1 . . . 2 2 Scanalyzers . | . . . . . . . . . . . . . . Garrison Access 1 | . . . . . . 1 . . . . . . . Total Hacks 120 | . 26 . . . 9 43 . 17 . . 1 12 12 Successful 67 | . 17 . . . 7 22 . 7 . . 1 6 7 Failed 53 | . 9 . . . 2 21 . 10 . . . 6 5 Catastrophic 5 | . 1 . . . . . . 3 . . . 1 . Database Lockouts . | . . . . . . . . . . . . . . Manual 10 | . . . 4 . . 1 . . . . 2 3 . Terminals 96 | . 23 . . . 8 40 . 14 . . 1 6 4 Fabricators 2 | . . . . . . . . . . . . 2 . Repair Stations 3 | . . . . . . . . . . . . 1 2 Recycling Units 17 | . 3 . . . 1 1 . 3 . . . 3 6 Scanalyzers . | . . . . . . . . . . . . . . Garrison Access 2 | . . . . . . 2 . . . . . . . Terminal Hacks 52 | . 16 . . . 6 19 . 5 . . 1 3 2 Record 7 | . 1 . . . . 2 . . . . 1 2 1 Robot Analysis 3 | . 1 . . . . 2 . . . . . . . Prototype ID Bank 7 | . . . . . 2 3 . 1 . . . 1 . Open Door 2 | . . . . . . 2 . . . . . . . Level Access Points 2 | . . . . . . . . 1 . . . . 1 Branch Access Points 1 | . . . . . . 1 . . . . . . . Emergency Access Points 6 | . 3 . . . 1 1 . 1 . . . . . Terminal Index 1 | . . . . . . 1 . . . . . . . Fabricator Index 1 | . . . . . . . . 1 . . . . . Alert Level 7 | . 4 . . . . 3 . . . . . . . Unreport Threat 1 | . . . . . . . . 1 . . . . . Locate Traps 2 | . 1 . . . 1 . . . . . . . . Dispatch Records 2 | . 2 . . . . . . . . . . . . Maintenance Status 1 | . . . . . . 1 . . . . . . . Security Status 3 | . 3 . . . . . . . . . . . . Recall Investigation 1 | . 1 . . . . . . . . . . . . Hauler Manifests 4 | . . . . . 1 3 . . . . . . . Zone Layout 1 | . . . . . 1 . . . . . . . . Fabricator Hacks 2 | . . . . . . . . . . . . 2 . Build 2 | . . . . . . . . . . . . 2 . Repair Station Hacks 2 | . . . . . . . . . . . . . 2 Scan Component 1 | . . . . . . . . . . . . . 1 Repair 1 | . . . . . . . . . . . . . 1 Recycling Unit Hacks 9 | . 1 . . . 1 1 . 2 . . . 1 3 Report Inventory 5 | . 1 . . . 1 1 . 1 . . . . 1 Retrieve Matter 1 | . . . . . . . . 1 . . . . . Retrieve Components 3 | . . . . . . . . . . . . 1 2 Scanalyzer . | . . . . . . . . . . . . . . Garrison Access Hacks 2 | . . . . . . 2 . . . . . . . Unlock Access 1 | . . . . . . 1 . . . . . . . Coupler Status 1 | . . . . . . 1 . . . . . . . Unauthorized Hacks . | . . . . . . . . . . . . . . Terminals . | . . . . . . . . . . . . . . Fabricators . | . . . . . . . . . . . . . . Repair Stations . | . . . . . . . . . . . . . . Recycling Units . | . . . . . . . . . . . . . . Scanalyzers . | . . . . . . . . . . . . . . Garrison Access . | . . . . . . . . . . . . . . Data Cores Recovered . | . . . . . . . . . . . . . . Used . | . . . . . . . . . . . . . . Hacking Detections 35 | . 7 . . . 4 8 . 6 . . . 6 4 Full Trace Events 2 | . 1 . . . . 1 . . . . . . . Feedback Events . | . . . . . . . . . . . . . . Feedback Blocked . | . . . . . . . . . . . . . . Robot Schematics Acquired . | . . . . . . . . . . . . . . Robots Built . | . . . . . . . . . . . . . . Matter 285 | . . . . . . . . . . . . 285 . Time 152 | . . . . . . . . . . . . 152 . Total Robot Build Rating . | . . . . . . . . . . . . . . Part Schematics Acquired . | . . . . . . . . . . . . . . Parts Built 1 | . . . . . . . . . . . . 1 . Matter 234 | . . . . . . . . . . . . 234 . Time 58 | . . . . . . . . . . . . 58 . Total Part Build Rating 7 | . . . . . . . . . . . . 7 . Parts Repaired 1 | . . . . . . . . . . . . . 1 Time 20 | . . . . . . . . . . . . . 20 Parts Recycled . | . . . . . . . . . . . . . . Recycled Matter . | . . . . . . . . . . . . . . Retrieved Matter . | . . . . . . . . . . . . . . Retrieved Components 10 | . . . . . . . . . . . . 2 8 Parts Scanalyzed . | . . . . . . . . . . . . . . Part Schematics Acquired . | . . . . . . . . . . . . . . Parts Damaged . | . . . . . . . . . . . . . . Bothacking | -11 -10 -10 -10 -9 -8 -8 -8 -7 -7 -6 -5 -5 -4 ------------ Run | Scr Mat Min Exi Min Mat Sto Gar Fac Low Zio Pro Fac Fac Used RIF Installer 1 | . . . . . . . 1 . . . . . . Robots Hacked 1 | . . . . . . . . . . . . . 1 Non-combat . | . . . . . . . . . . . . . . Combat 1 | . . . . . . . . . . . . . 1 Robot Hacks Applied 1 | . . . . . . . . . . . . . 1 parse_system 1 | . . . . . . . . . . . . . 1 Relay Couplers Released 3 | . . . . . . . 3 . . . . . . Machine Destruction 3 | . . . . . . . 3 . . . . . . Robots Rewired . | . . . . . . . . . . . . . . Allies Hacked . | . . . . . . . . . . . . . . Hacks Repelled . | . . . . . . . . . . . . . . Allies | -11 -10 -10 -10 -9 -8 -8 -8 -7 -7 -6 -5 -5 -4 -------- Run | Scr Mat Min Exi Min Mat Sto Gar Fac Low Zio Pro Fac Fac Total Allies 10 | . . . . . . 10 . . . . . . . Largest Group 10 | . . . . . . 10 . . . . . . . Highest-Rated Group 173 | . . . . . . 173 . . . . . . . Highest-Rated Ally 29 | . . . . . . 29 . . . . . . . Total Orders 21 | . . . . . . 21 . . . . . . . STAY 12 | . . . . . . 12 . . . . . . . FOLLOW 9 | . . . . . . 9 . . . . . . . Ally Attacks 39 | . . . . . . 39 . . . . . . . Total Damage 567 | . . . . . . 567 . . . . . . . Kills 6 | . . . . . . 6 . . . . . . . Allies Corrupted . | . . . . . . . . . . . . . . Allies Melted . | . . . . . . . . . . . . . . Intel | -11 -10 -10 -10 -9 -8 -8 -8 -7 -7 -6 -5 -5 -4 ------- Run | Scr Mat Min Exi Min Mat Sto Gar Fac Low Zio Pro Fac Fac Robot Analysis Total 3 | . 1 . . . . 2 . . . . . . . Derelict Logs Recovered 5 | . . 2 . . . . . . 2 1 . . . Drone Launches . | . . . . . . . . . . . . . . Drone Recoveries . | . . . . . . . . . . . . . . Exploration | -11 -10 -10 -10 -9 -8 -8 -8 -7 -7 -6 -5 -5 -4 ------------- Run | Scr Mat Min Exi Min Mat Sto Gar Fac Low Zio Pro Fac Fac Turns Passed 12741 | 320 1751 1008 781 198 2034 1783 816 921 175 109 359 723 1763 Spaces Moved 8721 | 110 806 473 395 73 773 657 323 1145 356 265 824 1091 1430 Core 5 | 5 . . . . . . . . . . . . . Treads 2070 | 105 70 . . 65 773 657 323 14 . . . . 63 Legs 1612 | . 736 473 395 8 . . . . . . . . . Wheels . | . . . . . . . . . . . . . . Hover 5034 | . . . . . . . . 1131 356 265 824 1091 1367 Flight . | . . . . . . . . . . . . . . Fastest Speed 36 | 50 160 180 120 150 192 185 185 38 38 38 38 36 40 Average Speed 104 | 155 180 192 190 220 201 190 189 42 38 38 38 39 53 Slowest Speed 330 | 160 270 270 270 330 260 245 245 222 38 38 38 40 197 Overloaded Moves . | . . . . . . . . . . . . . . Propulsion Burnouts . | . . . . . . . . . . . . . . Robots Hopped . | . . . . . . . . . . . . . . Cave-ins Triggered . | . . . . . . . . . . . . . . Exploration Rate (%) 46 | 5 99 85 69 9 40 72 43 23 53 14 81 30 23 Regions Visited 13 Branch Regions 7 Pre-discovered Areas 1 | . . . . . . . . . 1 . . . . Known Exits Taken 3 | . . . 1 . 1 1 . . . . . . . Unknown Exits Taken 9 | 1 1 1 . 1 . . . 1 1 1 1 1 . Scrap Searched 11 | . . 2 . 1 . . . . 2 2 4 . . Spaces Dug 85 | . . . . . 4 11 3 14 . . 2 14 37 Terrain Destroyed 506 | . 9 5 . 13 37 209 5 51 . . 2 14 161 Melee 74 | . . . . . 4 . 3 14 . . 2 14 37 Projectile 11 | . . . . . . 2 . . . . . . 9 AOE 421 | . 9 5 . 13 33 207 2 37 . . . . 115 Terrain Rammed . | . . . . . . . . . . . . . . Walls Destroyed . | . . . . . . . . . . . . . . Machines Disabled . | . . . . . . . . . . . . . . Actions | -11 -10 -10 -10 -9 -8 -8 -8 -7 -7 -6 -5 -5 -4 --------- Run | Scr Mat Min Exi Min Mat Sto Gar Fac Low Zio Pro Fac Fac Total 11473 | 191 968 521 424 108 1154 1065 464 1542 386 274 852 1338 2186 Wait 1593 | 32 17 7 1 7 230 257 78 257 24 6 19 176 482 Move 8709 | 109 805 472 394 72 772 657 322 1144 355 264 823 1090 1430 Hop . | . . . . . . . . . . . . . . Pick Up 199 | 5 24 2 19 17 30 16 1 43 . 1 . 16 25 Fast Attach 75 | 8 4 1 4 2 14 11 3 4 . . . 3 21 Attach 55 | . 4 2 . 1 2 . 5 7 . . . 6 28 Detach 9 | 1 2 . 1 1 . 1 2 1 . . . . . Swap 77 | . 6 2 . 1 13 19 7 9 1 1 . 5 13 Drop 187 | . 16 3 5 4 40 33 3 37 . 2 . 12 32 Fire 317 | 36 85 28 . 2 44 54 14 5 . . . . 49 Melee 201 | . . . . . 4 15 21 23 6 . 10 30 92 Ram . | . . . . . . . . . . . . . . Kick 9 | . 5 4 . . . . . . . . . . . Crush 20 | . . . . 1 5 . . . . . . . 14 Escape Stasis 22 | . . . . . . 2 8 12 . . . . . Rewire . | . . . . . . . . . . . . . . Trap . | . . . . . . . . . . . . . . Miscellaneous . | . . . . . . . . . . . . . . Route ------- -11/Scrapyard -10/Materials (discovered 4 exits: [*Mat x3] / [*Min]) -10/Mines (discovered 2 exits: [*Mat] / *Exi) -10/Exiles (discovered 2 exits: *Min x2) -9/Mines -8/Materials (discovered 2 exits: *Fac / *Sto) -8/Storage (discovered 2 exits: Rec / Gar) -8/Garrison -7/Factory (discovered 5 exits: Fac x4 / [*Low]) -7/Lower Caves -6/Zion -5/Proximity Caves -5/Factory -4/Factory (discovered 4 exits: Res x4) History --------- Turn | Location | Event 5 | -11/Scrapyard | Discovered new exit (range 14) 321 | -11/Scrapyard | Entered Materials 322 | -10/Materials | Build established: Mutant 548 | -10/Materials | Core integrity fell below 50% 774 | -10/Materials | Discovered new exit (range 9) 1085 | -10/Materials | Discovered new exit (range 16) 1599 | -10/Materials | Discovered new exit (range 12) 1864 | -10/Materials | Discovered new exit (range 16) 2041 | -10/Materials | Build established: Scavenger-Mutant 2072 | -10/Materials | Entered Mines 2525 | -10/Mines | Discovered new exit (range 10) 2600 | -10/Mines | Build established: Mutant 2881 | -10/Mines | Core integrity fell below 20% 2915 | -10/Mines | Lost 3 parts (1n2w) 3064 | -10/Mines | Deemed a non-threat by the Exiles lab entrance 3064 | -10/Mines | Discovered new exit (range 5) 3080 | -10/Mines | Entered Exiles 3081 | -10/Exiles | Identified exit to Mines 3215 | -10/Exiles | Met 8R-AWN 3256 | -10/Exiles | Met EX-HEX 3332 | -10/Exiles | Met EX-BIN 3361 | -10/Exiles | Aligned with FarCom system 3364 | -10/Exiles | Given EX-Vault access code 3429 | -10/Exiles | Opened EX-Vault 3479 | -10/Exiles | Found Prototype Storage 3479 | -10/Exiles | Identified Lightpack 2.0 3486 | -10/Exiles | Found Prototype Slashing Weapon 3486 | -10/Exiles | Identified Longsword +1 3633 | -10/Exiles | Warned to stay clear of 0b10 Research branches 3672 | -10/Exiles | Met EX-DEC 3755 | -10/Exiles | Build established: Hauler-Mutant 3861 | -10/Exiles | Left Exiles lab with Lightpack 2.0 3861 | -10/Exiles | Entered Mines 4012 | -9/Mines | Discovered new exit (range 10) 4059 | -9/Mines | Entered Materials 4059 | -8/Materials | Evolved 4 slots: Utility x2, Weapon x2 4060 | -8/Materials | Identified exit to Storage 4420 | -8/Materials | Build established: Hauler-Skirmisher 5749 | -8/Materials | Discovered new exit (range 7) 6093 | -8/Materials | Entered Storage 6168 | -8/Storage | Build established: Hauler-Mutant 6529 | -8/Storage | Build established: Hauler-Skirmisher 6640 | -8/Storage | Identified exit to Recycling 7173 | -8/Storage | Assisted by bots powering up and referring to "LRC-V3" 7501 | -8/Storage | Garrison activated, responded to threat 7626 | -8/Storage | Build established: Commander-Mutant 7693 | -8/Storage | First assault squad dispatched 7822 | -8/Storage | Destroyed 8 combat bots 7876 | -8/Storage | Identified exit to Garrison 7876 | -8/Storage | Entered Garrison 7886 | -8/Garrison | Installed Relay Interface Framework 7939 | -8/Garrison | Build established: Hauler-Skirmisher 8068 | -8/Garrison | Triggered checkpoint 8161 | -8/Garrison | Garrison Relay disabled 8381 | -8/Garrison | Triggered checkpoint 8381 | -8/Garrison | Triggered checkpoint 8435 | -8/Garrison | Core integrity fell below 50% 8585 | -8/Garrison | Discovered new exit (range 12) 8692 | -8/Garrison | Entered Factory 8692 | -7/Factory | Evolved 2 slots: Propulsion x2 8716 | -7/Factory | Build established: Hauler-Mutant 9000 | -7/Factory | Identified exit to Factory 9596 | -7/Factory | Discovered new exit (range 9) 9613 | -7/Factory | Entered Lower Caves 9648 | -7/Lower Caves | Learned Factory emergency access door positions 9671 | -7/Lower Caves | Learned location of Zion (-6) 9685 | -7/Lower Caves | Encountered a Warlord checkpoint 9783 | -7/Lower Caves | A Derelict revealed a hidden shortcut to a safe place 9788 | -7/Lower Caves | Entered Zion 9796 | -6/Zion | Learned Factory terminal intel 9840 | -6/Zion | Discovered new exit (range 10) 9862 | -6/Zion | RIF detected upon attempting to enter Zion 9862 | -6/Zion | Attacked by Zionites 9862 | -6/Zion | Spotted XZ-CW3(B) 9862 | -6/Zion | Spotted VY-Y7B(B) 9897 | -6/Zion | Entered Proximity Caves 9963 | -5/Proximity Caves | Spotted B-75 Beast 10132 | -5/Proximity Caves | Attracted the attention of an 0b10 checkpoint 10230 | -5/Proximity Caves | Discovered new exit (range 13) 10256 | -5/Proximity Caves | Entered Factory 10256 | -5/Factory | Evolved 4 slots: Power x1, Propulsion x1, Utility x2 10258 | -5/Factory | Loaded intel: 20 terminal locations 10688 | -5/Factory | Fabricated Micro-nuke Launcher? 10970 | -5/Factory | Discovered new exit (range 11) 10979 | -5/Factory | Entered another Factory area 10979 | -4/Factory | Evolved 2 slots: Utility x2 11045 | -4/Factory | Found Prototype Launcher 11045 | -4/Factory | Identified Tesla Bomb Launcher 11077 | -4/Factory | Found Prototype Device 11077 | -4/Factory | Identified EM Disruption Field 11367 | -4/Factory | Identified exit to Research 11429 | -4/Factory | Spotted B-86 Titan 11594 | -4/Factory | Lost 3 parts (2n1u) 11742 | -4/Factory | System corruption reached 10% 11967 | -4/Factory | Found Unknown Device 11967 | -4/Factory | Identified Quantum Capacitor 12196 | -4/Factory | Repaired Aerolev Unit 12351 | -4/Factory | Garrison activated, responded to threat 12390 | -4/Factory | Garrison activated, responded to threat 12432 | -4/Factory | Core integrity fell below 50% 12463 | -4/Factory | Lost 9 parts (1p2n2u4w) 12571 | -4/Factory | Lost 5 parts (1n2u2w) 12612 | -4/Factory | Lost 3 parts (1p2w) 12731 | -4/Factory | Core integrity fell below 20% 12742 | -4/Factory | Destroyed by G-67 Veteran with Plasma Rifle Last Messages --------------- 12732_ U-05 Engineer lays Concrete. 12732_ Phase Gun destroyed. 12732_ U-05 Engineer lays Concrete. 12734_ U-05 Engineer builds a Wall. 12735_ R-10 Processor collects Terrain Scan Processor. 12735_ U-05 Engineer lays Concrete. 12735_ U-05 Engineer builds a Wall. 12735_ U-05 Engineer lays Concrete. 12736_ Imp. Arc Projector destroyed. 12736_ U-05 Engineer lays Concrete. 12740_ U-05 Engineer builds a Wall. 12741_ K-01 Serf collects debris. 12741_ R-10 Processor collects Electrolaser. 12741_ U-05 Engineer lays Concrete. 12741_ U-05 Engineer forms the Earth. 12742_ System corrupted: Heat flow error (+190). 12742_ Imp. Remote Datajack destroyed. 12742_ Med. Storage Unit destroyed. 12742_ U-05 Engineer forms the Earth. 12742_ U-05 Engineer builds a Wall. Map ----- +----------------------------------------------------+ | """"""" ! ######## #???? ##???????????????? | | """"""" + !!! #??????#???????????????????? | | ##^ !!! #??????????????????????????? | | ############ !^ #??????????????????????????? | | ???????????# +??????????????????????????? | | ???????????# """ #??????????????????????????? | | ????????#### = """ #??????????????????????????? | | ????????# """ +??????????????????????????? | | ????????# ###??????????????????????????? | | ????????+ #????????????????????????????? | | ????????# #????????????????????????????? | | ????????# #????????????????????????????? | | ?########## =! !#?#######????????????????????? | | ?# #= *= ### ##???????????????????? | | ?# *+ *! ### ### ##??????????????????? | | ?# """" #=######## # #??????????????????? | | ?# """" # #??????# # #??????????????????? | | ?# """" # #??????# # #??????????????????? | | ?# """" # #??????# # #??????????????????? | | ?# """" # #???#### # ##?????????????????? | | ?# """" # #???# / % ###????????????????? | | ?# #g#???# # g # #????????????????? | | ?### ## #???# # u R *%##?????????????????? | | ???# #? ????# # uugg!%##?????????????????? | | ???# #? ????######### gg#####????????????????? | | #### #? ???????#]# @b g=###????????????????? | | # #? ???????# # ss#u#######?g??? ?????? | | # ####+########"# u# g #??g ##????? | | # # #??# "# #= #? g " ???? | | # # #??# "" "# # # #?????? | | # # #??# """ ## # +% +?????? | | # # #??# S" ## # # #?????? | | # # #### ## # ! # #?????? | | # + ## """ ## # # #?????? | | # # ## """ ## #! #? ??????? | | ###### ## """ ##= # #########?? ????????? | | ######/###### = # #????????????? | | ##### # #####+# # ##????????????? | | ???## ##### [ % # # ## ?????????????? | | ####" """ """ s#####?##????????????? | | # """ """ g w ????????????? | | # """ """ ########????????????? | | # """ """ ##### #???????????????????? | | # #???### ###???????????????????? | | # """ """ #?????# #?????????????????????? | | # """ """ #?????# #?????????????????????? | | + """ """ #?????# #?????????????????????? | | # """ """ #?????# #?????????????????????? | | # #?????# #?????????????????????? | | # ##?????? #?????????????????????? | +----------------------------------------------------+ Best States ------------- Heat Dissipation 43 Energy Generation 31 Energy Capacity 490 Matter Stores 330 Matter Capacity 400 Sight Range 16 Terrain Scan Density 10 ECM Strength 3 Armor Coverage 600 Resistance: KI 30 Evasion (%) 57 Melee Accuracy 5 Recoil Reduction 5 Offensive Hacking 10 Defensive Hacking 10 Item Schematics ----------------- None Robot Schematics ------------------ None Fabricated ------------ Micro-nuke Launcher | x1 | -5/Factory | Preloaded Alien Tech Used ----------------- None Achievements -------------- Ambidextrous Challenges ------------ None Game ------ Seed ImpactImpactFacilitator Manual? 0 Play Time 03:12:54 Cumulative 78.8 hours Start 2020.10.29 @ 19:56:53 End 2020.10.29 @ 23:40:31 Sessions 3 Manual Loads 0 Difficulty Rogue Special Mode None Game No. 65 Rogue 65 Adventurer 0 Explorer 0 Win Type - Total 0 Types 0/0/0/0/0/0/0/0/0 Lore% 32 Gallery% 36 Achievement% 28 Wizard Run 0 Options --------- ASCII 0 Keyboard 0 Movement Numpad Keybinds 0 Fullscreen 1 Font 18/SmallcapsGlow Map View 76x50 Tactical HUD 1 Map Filters NONE Filters NONE Steam 1 RUN: c74d684e-b26e-4862-b2e3-008888014f06